bitfinex/quotes_SOLUSD_20250922
["timestamp","ask_amount","ask_price","bid_price","bid_amount"]
[1758555033693,35.54,221.57,221.56,4.51345008]
[1758555033989,35.54,221.57,221.54,4.51371769]
[1758555034175,36.24,221.57,221.54,4.51371769]
[1758555034690,2.29456322,221.56,221.52,4.51426507]
[1758555034869,1.59456322,221.56,221.52,4.51426507]
[1758555035069,2.29456322,221.56,221.52,4.51426507]
[1758555035268,1.59456322,221.56,221.52,4.51426507]
[1758555035789,37.13456322,221.57,221.52,4.51426507]
[1758555035989,37.83456322,221.57,221.52,4.51426507]
[1758555036195,37.83456322,221.57,221.52,17.39449098]
[1758555036487,35.54,221.57,221.53,5.23]
[1758555036707,26.0,221.64,221.56,1.59456322]
[1758555036911,4.51035507,221.72,221.56,1.59456322]
[1758555036912,13.56514661,221.79,221.6,26.0]
[1758555037190,1.59456322,221.73,221.61,0.71]
[1758555037380,33.88,221.72,221.67,1.59456322]
[1758555037585,36.48,221.71,221.68,4.51100685]
[1758555037779,36.48,221.71,221.65,11.98892046]
[1758555037780,36.48,221.7,221.67,1.59456322]
[1758555037979,36.48,221.7,221.66,1.59456322]
[1758555038596,36.5,221.69,221.66,1.59456322]
[1758555038899,2.29456322,221.76,221.68,1.59456322]
[1758555039196,36.58,221.75,221.7,1.59456322]
[1758555039397,0.7,221.74,221.68,0.71]
[1758555039584,0.7,221.74,221.7,6.10508286]
[1758555039981,2.29456322,221.74,221.68,0.71]
[1758555040183,0.7,221.73,221.65,15.30421916]
[1758555040386,1.59456322,221.7,221.65,18.22113602]
[1758555040592,36.56,221.69,221.65,18.22113602]
[1758555040788,37.26,221.69,221.65,18.22113602]
[1758555041094,36.56,221.69,221.65,18.22113602]
[1758555041483,36.56,221.69,221.65,20.52569924]
[1758555041789,36.56,221.69,221.65,18.22113602]
[1758555042096,36.56,221.69,221.65,19.81569924]
[1758555042483,36.56,221.69,221.65,20.52569924]
[1758555043777,37.26,221.69,221.65,15.30421916]
[1758555043977,37.26,221.69,221.65,13.70965594]
[1758555044200,37.26,221.69,221.64,4.51179924]
[1758555044201,0.7,221.68,221.64,4.51179924]
[1758555044599,38.15456322,221.69,221.64,5.22179924]
[1758555044794,36.56,221.69,221.64,5.22179924]
[1758555045101,37.26,221.69,221.64,6.81636246]
[1758555045288,36.56,221.69,221.64,6.81636246]
[1758555045488,36.56,221.69,221.65,2.30456322]
[1758555045801,36.56,221.69,221.65,15.38146811]
[1758555045978,36.56,221.69,221.65,1.59456322]
[1758555046473,37.26,221.69,221.64,6.10636246]
[1758555046673,37.26,221.69,221.64,6.81636246]
[1758555047095,36.56,221.69,221.64,6.81636246]
[1758555047300,36.56,221.69,221.64,4.51179924]
[1758555047301,0.7,221.68,221.64,4.51179924]
[1758555047895,36.56,221.69,221.64,4.51179924]
[1758555048199,37.26,221.69,221.64,4.51179924]
[1758555049405,37.26,221.69,221.64,18.39555288]
[1758555049875,0.7,221.68,221.64,18.39555288]
[1758555050386,36.46,221.69,221.65,1.59456322]
[1758555050582,2.29456322,221.68,221.64,13.88375364]
[1758555050790,2.29456322,221.67,221.61,1.59456322]
[1758555051002,0.7,221.67,221.61,1.59456322]
[1758555051307,2.29456322,221.67,221.62,4.51221168]
[1758555051503,38.05456322,221.69,221.63,0.71]
[1758555051686,38.75456322,221.69,221.63,0.71]
[1758555052090,38.75456322,221.69,221.64,4.51182097]
[1758555052386,0.7,221.68,221.64,4.51182097]
[1758555052604,0.7,221.67,221.64,4.51182097]
[1758555052796,1.59456322,221.68,221.62,1.59456322]
[1758555052993,0.7,221.66,221.62,1.59456322]
[1758555053306,36.42,221.65,221.63,2.30456322]
[1758555054395,36.42,221.65,221.64,4.51182097]
[1758555054779,36.42,221.65,221.61,24.87934875]
[1758555054981,36.42,221.65,221.62,2.30456322]
[1758555055204,36.42,221.65,221.62,6.81679135]
[1758555055407,36.42,221.65,221.61,13.59826938]
[1758555055589,37.12,221.65,221.6,1.59456322]
[1758555056011,38.01456322,221.65,221.6,4.51263537]
[1758555056182,0.7,221.64,221.6,4.51263537]
[1758555056386,0.7,221.63,221.6,13.62463848]
[1758555056606,38.71456322,221.65,221.59,4.51283902]
[1758555056998,38.71456322,221.65,221.59,6.10740224]
[1758555057526,38.71456322,221.65,221.59,4.51283902]
[1758555057527,42.52625501,221.65,221.59,4.51283902]
[1758555057686,42.52625501,221.65,221.53,160.4]
[1758555057687,1.59456322,221.63,221.56,1.59456322]
[1758555057890,0.7,221.63,221.57,1.59456322]
[1758555058383,0.7,221.63,221.58,4.51304269]
[1758555059202,0.7,221.63,221.58,17.85286396]
[1758555059903,6.10651262,221.64,221.58,17.85286396]
[1758555060300,6.80651262,221.64,221.58,17.85286396]
[1758555060497,2.29456322,221.64,221.58,19.44742718]
[1758555060703,2.29456322,221.64,221.58,20.16742718]
[1758555062000,1.59456322,221.64,221.58,20.16742718]
[1758555062309,13.59559401,221.67,221.6,1.59456322]
[1758555062509,49.91559401,221.66,221.61,0.72]
[1758555062815,50.61559401,221.66,221.61,0.72]
[1758555063026,52.21015723,221.66,221.61,0.72]
[1758555063714,52.21015723,221.66,221.61,5.2322737]
[1758555064106,26.0,221.68,221.62,0.72]
[1758555064317,26.0,221.67,221.63,1.59456322]
[1758555064616,62.98,221.67,221.61,5.2322737]
[1758555064819,2.29456322,221.66,221.61,4.5122737]
[1758555065117,0.7,221.65,221.61,4.5122737]
[1758555065322,2.29456322,221.66,221.61,5.2322737]
[1758555066015,0.7,221.66,221.61,5.2322737]
[1758555066218,1.59456322,221.65,221.61,5.2322737]
[1758555066517,1.59456322,221.63,221.58,13.33982127]
[1758555066720,37.87456322,221.62,221.56,1.59456322]
[1758555066909,37.87456322,221.62,221.58,0.68]
[1758555067095,37.87456322,221.62,221.59,0.68]
[1758555067302,36.28,221.62,221.6,0.68]
[1758555067915,36.28,221.62,221.61,0.68]
[1758555068120,1.59456322,221.67,221.61,2.27456322]
[1758555068318,37.83456322,221.66,221.6,1.59456322]
[1758555068626,36.24,221.65,221.6,2.27456322]
[1758555068799,36.24,221.65,221.6,0.68]
[1758555069122,36.24,221.65,221.62,1.59456322]
[1758555069498,0.7,221.71,221.64,1.59456322]
[1758555069700,0.7,221.71,221.59,41.79493658]
[1758555069701,36.22,221.7,221.65,2.27456322]
[1758555069914,36.22,221.7,221.66,5.19141387]
[1758555070095,36.22,221.7,221.67,0.68]
[1758555070303,36.22,221.7,221.66,4.51141387]
[1758555070304,36.22,221.7,221.68,0.68]
[1758555070518,1.59456322,221.73,221.69,0.68]
[1758555070697,36.22,221.72,221.69,0.68]
[1758555071816,36.22,221.72,221.67,5.19115693]
[1758555072009,36.22,221.72,221.68,0.68]
[1758555073833,37.81456322,221.72,221.68,5.1909171]
[1758555074336,36.22,221.72,221.69,0.68]
[1758555075421,37.81456322,221.72,221.67,0.68]
[1758555075628,37.81456322,221.72,221.68,0.68]
[1758555075804,37.81456322,221.72,221.68,5.19099907]
[1758555076499,36.22,221.72,221.68,5.19099907]
[1758555077224,36.92,221.72,221.68,5.19099907]
[1758555077527,36.22,221.72,221.68,5.19099907]
[1758555078633,2.48855814,221.69,221.62,11.28032396]
[1758555078820,38.66855814,221.68,221.63,7.00058268]
[1758555079130,39.36855814,221.68,221.63,7.68058268]
[1758555079716,38.66855814,221.68,221.64,0.68]
[1758555079916,38.66855814,221.68,221.63,7.00058268]
[1758555080135,39.36855814,221.68,221.63,7.68058268]
[1758555080337,36.58,221.78,221.67,2.48855814]
[1758555080509,36.58,221.78,221.63,15.7920859]
[1758555080510,2.48855814,221.72,221.66,0.68]
[1758555080713,2.48855814,221.7,221.64,2.48855814]
[1758555080918,2.48855814,221.69,221.64,2.48855814]
[1758555081234,2.48855814,221.69,221.64,3.16855814]
[1758555082130,2.48855814,221.69,221.65,5.19161741]
[1758555082336,41.47057686,221.71,221.65,5.19161741]
[1758555082541,2.48855814,221.7,221.65,5.19161741]
[1758555082917,41.47057686,221.71,221.65,5.19161741]
[1758555083115,36.96,221.71,221.65,5.19161741]
[1758555083315,2.48855814,221.7,221.65,5.19161741]
[1758555083617,3.18855814,221.7,221.65,5.19161741]
[1758555083824,2.48855814,221.67,221.62,0.68]
[1758555084006,39.40855814,221.66,221.59,16.47482174]
[1758555084212,2.48855814,221.65,221.6,2.48855814]
[1758555084412,2.48855814,221.65,221.6,0.68]
[1758555084706,2.48855814,221.63,221.58,4.51302515]
[1758555084921,38.72855814,221.62,221.58,4.51302515]
[1758555085824,38.72855814,221.62,221.58,5.19302515]
[1758555086033,36.24,221.62,221.58,5.19302515]
[1758555086434,38.72855814,221.62,221.56,2.48855814]
[1758555086623,2.48855814,221.61,221.55,3.16855814]
[1758555086819,13.59559401,221.68,221.5,4.51467268]
[1758555086820,26.0,221.65,221.59,2.48855814]
[1758555087021,2.48855814,221.62,221.56,2.48855814]
[1758555087216,3.18855814,221.62,221.56,2.48855814]
[1758555087407,2.48855814,221.61,221.55,3.16855814]
[1758555087614,36.36,221.6,221.55,3.16855814]
[1758555087815,36.36,221.6,221.56,3.16855814]
[1758555088232,36.36,221.6,221.56,2.48855814]
[1758555088438,36.36,221.6,221.57,0.68]
[1758555089231,36.36,221.6,221.57,5.19315187]
[1758555089432,13.59559401,221.63,221.58,3.16855814]
[1758555089637,36.34,221.63,221.61,2.48855814]
[1758555089826,36.34,221.63,221.61,3.16855814]
[1758555090030,37.04,221.63,221.59,2.48855814]
[1758555090222,3.18855814,221.62,221.57,4.51315187]
[1758555090418,3.18855814,221.61,221.56,4.51343398]
[1758555091045,2.48855814,221.62,221.56,7.68199212]
[1758555091737,44.0406805,221.63,221.56,7.68199212]
[1758555092134,7.0006805,221.63,221.56,7.68199212]
[1758555092336,39.59559401,221.67,221.56,7.68199212]
[1758555092337,36.34,221.62,221.57,5.2]
[1758555092536,2.48855814,221.71,221.61,2.48855814]
[1758555092740,50.63559401,221.7,221.64,2.48855814]
[1758555092940,3.18855814,221.69,221.62,0.68]
[1758555093122,3.18855814,221.69,221.63,2.48855814]
[1758555093322,0.7,221.69,221.63,2.48855814]
[1758555093524,5.21082177,221.69,221.64,2.48855814]
[1758555094348,5.21082177,221.69,221.63,7.00058268]
[1758555095844,49.93559401,221.7,221.64,2.48855814]
[1758555096034,49.93559401,221.7,221.65,2.48855814]
[1758555096234,50.63559401,221.7,221.65,3.16855814]
[1758555096430,26.0,221.72,221.66,3.16855814]
[1758555096636,36.28,221.71,221.66,3.16855814]
[1758555096837,0.7,221.7,221.66,2.48855814]
[1758555097042,36.28,221.71,221.66,2.48855814]
[1758555097236,36.98,221.71,221.66,0.68]
[1758555097625,36.98,221.71,221.62,0.68]
[1758555097626,16.78415215,221.7,221.62,0.68]
[1758555097822,16.78415215,221.7,221.64,2.48855814]
[1758555098033,3.18855814,221.69,221.62,3.16855814]
[1758555098333,0.7,221.69,221.64,2.48855814]
[1758555098733,13.59559401,221.7,221.65,3.16855814]
[1758555098934,13.59559401,221.7,221.66,0.68]
[1758555099445,18.80626694,221.7,221.65,2.48855814]
[1758555099639,21.29482508,221.7,221.65,0.68]
[1758555100140,16.78415215,221.7,221.65,0.68]
[1758555100333,13.59559401,221.7,221.66,0.68]
[1758555100535,14.29559401,221.7,221.65,2.48855814]
[1758555100735,14.29559401,221.7,221.65,3.16855814]
[1758555100931,13.59559401,221.7,221.65,2.48855814]
[1758555101256,36.2,221.71,221.68,2.48855814]
[1758555101547,36.2,221.71,221.67,6.99976849]
[1758555101746,36.2,221.71,221.66,7.67993686]
[1758555101942,36.9,221.71,221.66,4.51137872]
[1758555102150,36.2,221.71,221.66,4.51137872]
[1758555102452,36.2,221.71,221.68,2.48855814]
[1758555102773,0.7,221.7,221.63,0.68]
[1758555103131,36.2,221.71,221.66,2.48855814]
[1758555103332,36.2,221.71,221.67,2.48855814]
[1758555103928,40.71043009,221.71,221.67,2.48855814]
[1758555104142,41.41043009,221.71,221.67,2.48855814]
[1758555104343,0.7,221.7,221.67,2.48855814]
[1758555104545,40.71043009,221.71,221.67,2.48855814]
[1758555105246,41.41043009,221.71,221.67,2.48855814]
[1758555107336,0.7,221.7,221.66,2.48855814]
[1758555107545,16.08415215,221.68,221.59,0.68]
[1758555107771,16.08415215,221.65,221.59,2.48855814]
[1758555107940,0.7,221.64,221.59,2.48855814]
[1758555108140,36.16,221.63,221.59,2.48855814]
[1758555109048,40.67209112,221.63,221.59,2.48855814]
[1758555109260,40.67209112,221.63,221.58,4.51296356]
[1758555109261,0.7,221.62,221.58,2.48855814]
[1758555109767,0.7,221.62,221.59,2.48855814]
[1758555110291,5.21226912,221.62,221.57,4.51315256]
[1758555110569,4.51226912,221.62,221.56,4.5134398]
[1758555110764,5.21226912,221.62,221.57,2.48855814]
[1758555111062,5.21226912,221.62,221.58,2.48855814]
[1758555111359,4.51226912,221.62,221.58,2.48855814]
[1758555111567,0.7,221.61,221.58,2.48855814]
[1758555112164,0.7,221.61,221.56,4.5134398]
[1758555112165,4.51226912,221.62,221.56,4.5134398]
[1758555112363,0.7,221.63,221.59,2.48855814]
[1758555112665,36.08,221.62,221.6,2.48855814]
[1758555112864,36.78,221.62,221.6,2.48855814]
[1758555113160,26.0,221.65,221.6,2.48855814]
[1758555113462,36.58,221.76,221.57,4.51324637]
[1758555113463,13.59559401,221.68,221.64,2.48855814]
[1758555113768,36.22,221.67,221.65,2.48855814]
[1758555115945,0.7,221.66,221.62,4.51221499]
[1758555116139,0.7,221.66,221.63,2.48855814]
[1758555117265,36.18,221.65,221.63,2.48855814]
[1758555118044,36.18,221.65,221.62,4.51221164]
[1758555118247,36.18,221.65,221.55,25.1151989]
[1758555118248,0.7,221.64,221.55,25.1151989]
[1758555118555,36.18,221.65,221.61,2.48855814]
[1758555118866,36.18,221.65,221.61,3.16855814]
[1758555120369,40.69161754,221.65,221.61,3.16855814]
[1758555120672,0.7,221.73,221.62,4.51222813]
[1758555120861,36.16,221.72,221.68,2.48855814]
[1758555121051,36.86,221.72,221.68,2.48855814]
[1758555122070,0.7,221.71,221.67,6.99958751]
[1758555122578,18.80538024,221.74,221.69,2.48855814]
[1758555122764,36.14,221.73,221.69,2.48855814]
[1758555122946,36.84,221.73,221.69,2.48855814]
[1758555123271,36.22,221.72,221.69,2.48855814]
[1758555124464,40.73019944,221.72,221.66,5.19135405]
[1758555124658,40.73019944,221.72,221.67,2.48855814]
[1758555124968,40.73019944,221.72,221.67,3.16855814]
[1758555125179,36.92,221.72,221.67,3.16855814]
[1758555125546,13.59559401,221.71,221.6,26.0]
[1758555125747,0.72,221.7,221.66,2.48855814]
[1758555125965,36.18,221.69,221.67,3.20855814]
[1758555126165,36.18,221.69,221.67,2.48855814]
[1758555126566,36.18,221.69,221.66,2.48855814]
[1758555126854,40.69084186,221.69,221.66,2.48855814]
[1758555127169,0.72,221.68,221.63,0.72]
[1758555127370,0.72,221.68,221.64,2.48855814]
[1758555128362,5.23101061,221.68,221.64,2.48855814]
[1758555128572,0.72,221.67,221.59,11.28209756]
[1758555128766,36.18,221.66,221.61,0.72]
[1758555128961,36.18,221.66,221.63,2.48855814]
[1758555129361,36.18,221.66,221.63,3.20855814]
[1758555129750,36.18,221.66,221.63,2.48855814]
[1758555129977,36.18,221.66,221.62,2.48855814]
[1758555130164,40.69145153,221.66,221.62,2.48855814]
[1758555130363,41.41145153,221.66,221.62,2.48855814]
[1758555131174,36.16,221.65,221.63,2.48855814]
[1758555133169,36.16,221.65,221.62,2.48855814]
[1758555133759,36.16,221.65,221.63,2.48855814]
[1758555134875,36.88,221.65,221.59,0.72]
[1758555135088,36.88,221.65,221.61,2.48855814]
[1758555135395,36.16,221.65,221.61,2.48855814]
[1758555135583,36.16,221.65,221.61,3.20855814]
[1758555136384,36.16,221.65,221.62,2.48855814]
[1758555136689,36.16,221.65,221.62,1.59361375]
[1758555138066,41.39162869,221.65,221.62,1.59361375]
[1758555138461,36.88,221.65,221.62,1.59361375]
[1758555138994,40.67164984,221.65,221.62,1.59361375]
[1758555139163,0.72,221.64,221.62,1.59361375]
[1758555139363,36.16,221.65,221.62,1.59361375]
[1758555140481,36.88,221.65,221.62,1.59361375]
[1758555140675,41.39165793,221.65,221.62,1.59361375]
[1758555141890,0.72,221.64,221.62,1.59361375]
[1758555142575,5.23183891,221.64,221.61,1.59361375]
[1758555142790,5.23183891,221.64,221.56,0.72]
[1758555142791,0.72,221.63,221.56,0.72]
[1758555142973,36.0,221.62,221.58,1.59361375]
[1758555143476,36.72,221.62,221.58,1.59361375]
[1758555144798,40.51237994,221.62,221.58,1.59361375]
[1758555144984,0.72,221.61,221.57,1.59361375]
[1758555145491,40.51237994,221.62,221.58,1.59361375]
[1758555145682,41.23237994,221.62,221.58,1.59361375]
[1758555145878,5.23254909,221.61,221.58,1.59361375]
[1758555146478,0.72,221.6,221.58,1.59361375]
[1758555146678,38.27361375,221.59,221.53,1.59361375]
[1758555146876,38.27361375,221.59,221.51,1.59361375]
[1758555146877,41.90920776,221.58,221.51,1.59361375]
[1758555147078,1.59361375,221.57,221.5,1.59361375]
[1758555147274,35.94,221.56,221.5,1.59361375]
[1758555147471,36.62,221.56,221.5,1.59361375]
[1758555147884,4.51385754,221.54,221.5,1.59361375]
[1758555148087,35.94,221.53,221.5,1.59361375]
[1758555148290,35.94,221.53,221.46,4.51541162]
[1758555148291,0.68,221.52,221.46,4.51541162]
[1758555148592,0.68,221.52,221.48,1.59361375]
[1758555148790,0.68,221.51,221.48,1.59361375]
[1758555148996,35.92,221.5,221.47,14.83833469]
[1758555149710,11.28443186,221.55,221.47,14.83833469]
[1758555149711,4.51201061,221.64,221.49,12.48806875]
[1758555149878,21.94,221.63,221.6,1.59361375]
[1758555150306,26.0,221.63,221.58,4.51289309]
[1758555150494,0.68,221.65,221.61,1.59361375]
[1758555150676,11.27627422,221.71,221.62,1.59361375]
[1758555150876,0.68,221.7,221.65,1.59361375]
[1758555151101,37.22,221.69,221.65,1.59361375]
[1758555151304,37.22,221.69,221.64,1.59361375]
[1758555151514,36.54,221.68,221.64,2.30361375]
[1758555151806,36.54,221.67,221.64,1.59361375]
[1758555151976,36.54,221.67,221.63,4.51184602]
[1758555152183,36.54,221.67,221.63,5.22184602]
[1758555152482,36.54,221.67,221.58,11.28260673]
[1758555152687,2.27361375,221.66,221.59,0.71]
[1758555152889,27.59361375,221.64,221.56,0.71]
[1758555153096,38.15361375,221.63,221.57,1.59361375]
[1758555153312,36.56,221.63,221.57,1.59361375]
[1758555153490,38.15361375,221.63,221.57,2.30361375]
[1758555153678,38.83361375,221.63,221.57,1.59361375]
[1758555153880,1.59361375,221.62,221.57,4.51313403]
[1758555154095,2.27361375,221.62,221.57,4.51313403]
[1758555154380,0.68,221.61,221.56,1.59361375]
[1758555154786,1.59361375,221.6,221.54,6.81731991]
[1758555154995,36.52,221.59,221.54,6.81731991]
[1758555155197,36.52,221.59,221.54,6.10731991]
[1758555155498,36.52,221.59,221.55,0.71]
[1758555155887,1.59361375,221.58,221.52,2.30361375]
[1758555156089,1.59361375,221.58,221.52,6.81785159]
[1758555156277,1.59361375,221.58,221.52,5.22423784]
[1758555156477,1.59361375,221.58,221.52,2.30361375]
[1758555156697,38.11361375,221.59,221.53,1.59361375]
[1758555156897,38.11361375,221.59,221.53,2.30361375]
[1758555157903,38.11361375,221.59,221.54,4.51385754]
[1758555158109,2.27361375,221.58,221.52,1.59361375]
[1758555158402,2.27361375,221.58,221.52,6.10779664]
[1758555158784,1.59361375,221.57,221.52,4.51418289]
[1758555159104,2.27361375,221.57,221.52,4.51418289]
[1758555159305,2.27361375,221.57,221.52,5.22418289]
[1758555159881,2.27361375,221.57,221.52,4.51418289]
[1758555160081,1.59361375,221.58,221.52,6.10779664]
[1758555160288,1.59361375,221.58,221.53,0.71]
[1758555161011,37.2,221.59,221.53,5.22394421]
[1758555161200,38.79361375,221.59,221.53,6.81755796]
[1758555161396,38.11361375,221.59,221.53,6.81755796]
[1758555161909,42.62645355,221.59,221.53,6.81755796]
[1758555162288,41.0328398,221.59,221.53,6.81755796]
[1758555162489,36.4,221.58,221.54,0.71]
[1758555162717,36.4,221.57,221.55,0.71]
[1758555162892,1.59361375,221.6,221.55,0.71]
[1758555163215,36.4,221.59,221.55,5.22346765]
[1758555163401,36.4,221.58,221.55,5.22346765]
[1758555163593,36.4,221.58,221.55,4.51346765]
[1758555164289,2.27361375,221.6,221.55,4.51346765]
[1758555164506,0.68,221.59,221.55,4.51346765]
[1758555164708,36.38,221.58,221.57,1.59361375]
[1758555164909,13.59559401,221.67,221.57,1.59361375]
[1758555164910,0.68,221.65,221.57,2.30361375]
[1758555165118,36.38,221.64,221.6,1.59361375]
[1758555165311,36.38,221.64,221.59,1.59361375]
[1758555165312,37.06,221.64,221.59,1.59361375]
[1758555165501,37.06,221.64,221.59,2.30361375]
[1758555166016,37.06,221.64,221.59,6.81636151]
[1758555166221,36.36,221.63,221.6,0.71]
[1758555166702,36.36,221.63,221.59,6.10636151]
[1758555167399,26.0,221.67,221.62,1.59361375]
[1758555167716,36.34,221.66,221.63,0.71]
[1758555168012,36.34,221.65,221.63,1.59361375]
[1758555168198,36.34,221.65,221.63,2.30361375]
[1758555168802,0.68,221.69,221.64,1.59361375]
[1758555169116,13.59559401,221.72,221.59,20.31484532]
[1758555169117,36.56,221.68,221.67,1.59361375]
[1758555169301,0.68,221.72,221.67,6.1048241]
[1758555169511,37.26,221.75,221.69,1.59361375]
[1758555169708,36.54,221.74,221.69,1.59361375]
[1758555170105,38.13361375,221.74,221.68,0.71]
[1758555170322,36.54,221.74,221.68,15.84745193]
[1758555170618,36.52,221.73,221.7,1.59361375]
[1758555170817,36.52,221.73,221.7,2.30361375]
[1758555171424,36.52,221.72,221.7,6.81412389]
[1758555171729,36.52,221.72,221.7,2.30361375]
[1758555171910,36.52,221.72,221.7,6.81412863]
[1758555172606,36.52,221.72,221.68,0.71]
[1758555172815,1.59361375,221.69,221.62,0.71]
[1758555173015,37.16,221.68,221.62,1.59361375]
[1758555173324,37.16,221.68,221.6,5.22263537]
[1758555173515,38.75361375,221.68,221.62,1.59361375]
[1758555174220,38.75361375,221.68,221.62,14.96355761]
[1758555174615,38.75361375,221.68,221.62,19.47558849]
[1758555174820,43.26466372,221.68,221.62,14.96355761]
[1758555175018,43.26466372,221.68,221.55,26.0]
[1758555175019,1.59361375,221.63,221.55,0.71]
[1758555175342,1.59361375,221.61,221.55,2.30361375]
[1758555175526,36.5,221.6,221.55,2.30361375]
[1758555175900,36.5,221.6,221.56,0.71]
[1758555176734,36.5,221.6,221.56,4.51340462]
[1758555176922,0.68,221.59,221.54,1.59361375]
[1758555177110,0.68,221.59,221.54,6.10747129]
[1758555177311,38.09361375,221.6,221.54,6.82747129]
[1758555177511,38.09361375,221.6,221.54,6.10747129]
[1758555178221,2.27361375,221.59,221.54,4.51385754]
[1758555178422,0.68,221.58,221.54,4.51385754]
[1758555178629,6.10696358,221.57,221.53,13.52046535]
[1758555178811,37.12,221.56,221.5,1.59361375]
[1758555179007,37.12,221.56,221.5,4.51467268]
[1758555179328,1.59361375,221.54,221.49,13.42254652]
[1758555179506,0.68,221.53,221.47,2.31361375]
[1758555179827,36.44,221.52,221.47,2.31361375]
[1758555180625,0.68,221.51,221.46,6.10909977]
[1758555180826,0.68,221.51,221.46,19.90647662]
[1758555181037,36.44,221.52,221.46,6.82909977]
[1758555181736,36.44,221.52,221.46,6.10909977]
[1758555181955,2.27361375,221.51,221.45,1.79361375]
[1758555182138,2.27361375,221.51,221.45,6.30924941]
[1758555182460,1.59361375,221.49,221.45,0.2]
[1758555182645,36.4,221.48,221.45,0.2]
[1758555182855,37.08,221.48,221.45,0.2]
[1758555183151,36.4,221.48,221.45,0.2]
[1758555184039,2.27361375,221.47,221.45,0.2]
[1758555184240,1.59361375,221.46,221.45,0.2]
[1758555184448,2.27361375,221.46,221.45,0.2]
[1758555186363,1.59361375,221.47,221.45,0.2]
[1758555186541,0.68,221.48,221.45,0.2]
[1758555186742,38.59361375,221.47,221.45,0.2]
[1758555187166,2.27361375,221.47,221.45,0.2]
[1758555187461,36.32,221.46,221.45,0.2]
[1758555188860,0.68,221.52,221.45,6.99929896]
[1758555189046,0.68,221.54,221.48,1.59361375]
[1758555189238,1.59361375,221.56,221.49,6.79849026]
[1758555189439,36.28,221.55,221.49,6.79849026]
[1758555189859,36.28,221.54,221.51,1.59361375]
[1758555190069,36.28,221.54,221.5,1.59361375]
[1758555190267,1.59361375,221.51,221.45,0.2]
[1758555190577,1.59361375,221.46,221.45,0.2]
[1758555190857,26.0,221.5,221.45,0.2]
[1758555191270,36.36,221.49,221.46,2.28361375]
[1758555191567,36.36,221.49,221.45,4.71568398]
[1758555191753,36.36,221.49,221.45,5.40568398]
[1758555192450,0.68,221.48,221.45,0.2]
[1758555192756,0.68,221.48,221.47,4.15702475]
[1758555194565,0.68,221.48,221.45,0.2]
[1758555194866,39.59559401,221.46,221.45,0.2]
[1758555195072,40.27559401,221.46,221.45,0.2]
[1758555195274,44.79108213,221.46,221.45,0.2]
[1758555197362,81.11108213,221.46,221.45,0.2]
[1758555197871,55.11108213,221.46,221.45,0.2]
[1758555201274,61.79367376,221.55,221.45,0.89]
[1758555201472,50.03559401,221.54,221.52,6.09538024]
[1758555201866,26.0,221.52,221.51,6.09538024]
[1758555202052,50.03559401,221.54,221.51,6.09538024]
[1758555202257,50.03559401,221.54,221.48,0.69]
[1758555202258,0.68,221.53,221.5,6.09538024]
[1758555202462,26.0,221.51,221.49,6.09538024]
[1758555202655,36.44,221.5,221.49,6.09538024]
[1758555203362,26.0,221.51,221.49,6.78538024]
[1758555203680,44.10945743,221.54,221.5,6.09538024]
[1758555203977,37.1,221.53,221.51,6.09538024]
[1758555204372,41.61406904,221.53,221.5,6.09538024]
[1758555204570,0.68,221.52,221.45,0.2]
[1758555204873,36.4,221.51,221.49,6.09538024]
[1758555205860,0.68,221.5,221.49,6.09538024]
[1758555206278,36.4,221.51,221.49,6.09538024]
[1758555208166,0.68,221.5,221.45,0.2]
[1758555208373,36.4,221.51,221.45,0.2]
[1758555208374,37.08,221.49,221.45,0.2]
[1758555208570,13.59559401,221.48,221.45,6.29538024]
[1758555208759,14.27559401,221.48,221.45,6.29538024]
[1758555209855,0.68,221.47,221.45,6.29538024]
[1758555210059,37.04,221.46,221.45,0.2]
[1758555210267,36.36,221.46,221.45,0.2]